Cogmind - Beta 15 @@@ ROGUE MODE // 2025.05.26 @ 00:55:58 Player: SunShine214 Result: Destroyed by 8R-AWN with 8R-AWN's Boregun Performance ------------- Evolutions (1) 500 Regions Visited (4) 800 Robots Destroyed (18) 90 Value Destroyed (630) 630 Prototype IDs (6) 120 Alien Tech Used (0) 0 Bonus (24) 24 TOTAL SCORE: 2164 Bonus ------- Follower Combat Kills 39 Friendly Fire -15 Cogmind --------- Core Integrity 0/400 Matter 292/300 Energy 26/100 System Corruption 9% Temperature Cool (0) Movement Core (50) Location -9/Exiles Parts ------- > --- POWER (1) -------- (None) > --- PROPULSION (2) --- (None) > --- UTILITY (4) ------ (None) > --- WEAPON (2) ------- (None) > --- INVENTORY (5) ---- Light Ion Engine Small Storage Unit Salvage Targeting Computer Light Assault Rifle Mining Laser Peak State ------------ > --- POWER ------------ Reinforced Ion Engine > --- PROPULSION ------- Compact Wheel Compact Wheel > --- UTILITY ---------- Medium Storage Unit Structural Scanner Hardened Light Armor Plating Splice Drone Bay > --- WEAPON ----------- Improved EM Shotgun Shotgun > --- INVENTORY -------- Light Ion Engine Heat Sink Small Storage Unit Salvage Targeting Computer Improved EM Shotgun Small Laser Spread Laser Light Assault Rifle Light Assault Rifle [Rating: 21] Favorites ----------- Power Reinforced Ion Engine Engine Reinforced Ion Engine Propulsion Compact Wheel Wheel Compact Wheel Utility Structural Scanner Device Structural Scanner Storage Medium Storage Unit Processor Targeting Computer Protection Hardened Light Armor Plating Weapon Improved EM Shotgun Energy Gun Improved EM Shotgun Ballistic Gun Shotgun Launcher Rocket Launcher Special Weapon Mining Laser Build | -11 -10 -9 -9 -9 ------- Run | Yrd Mat Mat Min Exi Slots Evolved 2 | . . 2 . . Power . | . . . . . Propulsion . | . . . . . Utility 2 | . . 2 . . Weapon . | . . . . . Parts Attached 24 | 6 2 9 5 2 Power 2 | 1 . 1 . . Engine 2 | 1 . 1 . . Core . | . . . . . Reactor . | . . . . . Propulsion 5 | 2 . . 3 . Treads . | . . . . . Leg . | . . . . . Wheel 5 | 2 . . 3 . Hover . | . . . . . Flight . | . . . . . Utility 9 | 1 1 5 1 1 Device 3 | . . 1 1 1 Storage 2 | 1 . 1 . . Processor 2 | . 1 1 . . Hackware . | . . . . . Protection 2 | . . 2 . . Artifact . | . . . . . Weapon 8 | 2 1 3 1 1 Energy Gun 4 | 1 1 2 . . Energy Cannon . | . . . . . Ballistic Gun 2 | 1 . 1 . . Ballistic Cannon . | . . . . . Launcher 1 | . . . . 1 Special Weapon 1 | . . . 1 . Impact Weapon . | . . . . . Slashing Weapon . | . . . . . Piercing Weapon . | . . . . . Special Melee Weapon . | . . . . . Unidentified Prototypes 2 | . . 1 1 . Parts Lost 14 | . . 3 2 9 Power 1 | . . . . 1 Propulsion 5 | . . 1 2 2 Utility 4 | . . 1 . 3 Weapon 4 | . . 1 . 3 Highest Loss Streak 9 | . . 1 2 9 To Critical Strikes 2 | . . . . 2 Average Backups 8 | . 5 8 9 9 Power . | . . . 1 1 Propulsion . | . . . . . Utility 2 | . 1 2 3 2 Weapon 5 | . 4 5 5 5 Tool/Special . | . . . . . Unused Backups 6 | . . 1 . 5 Power . | . . . . . Propulsion . | . . . . . Utility 1 | . . . . 1 Weapon 5 | . . 1 . 4 Tool/Special . | . . . . . Average Slot Usage (%) 94 | . 98 97 90 96 Engine 11 | . 14 10 11 10 Wheel 18 | . 28 20 13 20 Device 16 | . . 11 21 22 Storage 11 | . 14 11 11 11 Processor 4 | . 12 10 . . Protection 8 | . . 10 11 9 Energy Gun 11 | . 14 10 11 10 Ballistic Gun 10 | . 14 11 9 10 Peak Build Rating 21 | 6 9 16 21 21 Average Rating 16 | 4 8 13 19 19 On Entrance 10 | . 6 9 15 21 Naked Turns 2 | . . . . 2 Heaviest Build 40 | 11 13 32 40 40 Greatest Support 32 | 32 32 32 32 20 Greatest Overweight (x) 13 | . . 1 13 3 Average Overweight (x) . | . . . 1 1 Largest Inventory Capacity 10 | 8 8 10 10 10 Average Capacity 9 | 7 8 9 10 9 Most Carried 10 | . 8 10 10 10 Average Carried 8 | . 5 8 9 9 Final Capacity 10 | 8 8 10 10 5 Final Carried 10 | . 8 9 10 5 Class Distribution -------------------- 100% | Mutant Dominant Class ---------------- Mutant | -10/Materials Mutant | -9/Materials Mutant | -9/Mines Mutant | -9/Exiles Resources | -11 -10 -9 -9 -9 ----------- Run | Yrd Mat Mat Min Exi Matter Collected 710 | 171 . 358 129 52 Remotely . | . . . . . Salvage Created 702 | . 23 524 45 110 Parts 31 | . 4 22 5 . Haulers Intercepted . | . . . . . Recyclers Shooed . | . . . . . Parts Field Recycled . | . . . . . Retrieved Matter . | . . . . . Parts Self-Destructed . | . . . . . Prevented . | . . . . . Kills | -11 -10 -9 -9 -9 ------- Run | Yrd Mat Mat Min Exi Combat Hostiles Destroyed 21 | . . 13 1 7 Guns 20 | . . 12 1 7 AOE 1 | . . 1 . . Classes Destroyed 8 | . 1 3 3 1 Worker 1 | . . . 1 . Builder 1 | . . . 1 . Watcher 2 | . 2 . . . Grunt 10 | . . 10 . . Brawler 1 | . . 1 . . Sentry 2 | . . 2 . . Demolisher 1 | . . . 1 . Assembled 7 | . . . . 7 Best Kill Streak 7 | . 2 3 1 7 Combat Bots Only 7 | . . 3 1 7 Max Kills in Single Turn 2 | . 1 2 1 1 Gunslinging . | . . . . . Exploded 1 | . . 1 . . Melee . | . . . . . Uniques/NPCs Destroyed . | . . . . . Combat | -11 -10 -9 -9 -9 -------- Run | Yrd Mat Mat Min Exi Hostile Shots Fired 167 | . 4 102 5 56 Missed 41 | . 1 30 . 10 Hits 126 | . 3 72 5 46 Melee 4 | . . . . 4 Projectile 122 | . 3 72 5 42 AOE 5 | . . . 5 . Critical Strikes 15 | . . . . 15 Damage Taken 2122 | . 83 876 379 784 Core 415 | . . 180 35 200 Absorbed by Shields . | . . . . . Regen/Repaired (Parts) 108 | . . 108 . . Core Remaining (%) 100 | 100 100 . . . Volleys Fired 72 | . 4 37 14 17 Largest 2 | . 2 2 2 2 Hottest 100 | . 85 85 100 78 Shots Fired 133 | . 7 74 23 29 Gun 125 | . 7 74 16 28 Cannon . | . . . . . Launcher 1 | . . . . 1 Special 7 | . . . 7 . Kinetic 70 | . 4 47 8 11 Thermal 30 | . 3 20 7 . Explosive 1 | . . . . 1 Electromagnetic 32 | . . 7 8 17 Robot Hit Streak 11 | . 3 11 6 5 Robot Miss Streak 10 | . 7 10 2 4 Penetration Max . | . . . . . Secondary Targets 4 | . . 1 . 3 Max Gunslinging Chain 1 | . . 1 . 1 Shots Hit Robots 92 | . 3 55 13 21 Core Hits 66 | . 2 39 6 19 Critical Kills . | . . . . . Critical Parts Destroyed . | . . . . . Critical Strikes . | . . . . . Melee Attacks . | . . . . . Impact . | . . . . . Slashing . | . . . . . Piercing . | . . . . . Sneak Attacks . | . . . . . Combat Hostiles . | . . . . . Follow-up Attacks . | . . . . . Damage Inflicted 1533 | . 158 924 205 246 Guns 1336 | . 37 854 202 243 Cannons . | . . . . . Explosions 181 | . 114 64 . 3 Melee . | . . . . . Ramming 16 | . 7 6 3 . Kinetic 708 | . 12 479 93 124 Thermal 473 | . 139 334 . . Explosive 3 | . . . . 3 Electromagnetic 333 | . . 105 109 119 Impact . | . . . . . Slashing . | . . . . . Piercing . | . . . . . Highest Corruption 9 | . 2 . 5 9 Average Corruption 4 | . 1 . 5 5 Corruption Purged . | . . . . . Corruption Blocked . | . . . . . Effects 35 | . 1 . 18 16 Message Errors 7 | . . . 4 3 Matter Fused 9 | . . . 5 4 Heat Flow Errors 5 | . . . 3 2 Energy Discharges 2 | . . . 1 1 Data Loss (minor) 5 | . 1 . 2 2 Data Loss (major) 3 | . . . 1 2 Misfires 3 | . . . 2 1 Alerts 1 | . . . . 1 Overload Shots . | . . . . . Overflow Damage . | . . . . . Projectiles . | . . . . . Explosions . | . . . . . Melee . | . . . . . Knockbacks . | . . . . . Impact . | . . . . . Kinetic . | . . . . . Secondary . | . . . . . Self-Inflicted Damage 134 | . 58 39 1 36 Shots 3 | . 1 1 . 1 Rammed 4 | . 2 1 1 . Targets Rammed 4 | . 2 1 1 . Kicked . | . . . . . Crushed . | . . . . . Highest Temperature 404 | . 48 404 270 159 Average Temperature 117 | . 23 153 94 72 Received Heat Transfer 411 | . . 351 . 60 Effects 3 | . . 3 . . Shutdowns 2 | . . 2 . . Short Circuit 1 | . . 1 . . Siege Activations . | . . . . . Martial Activations . | . . . . . Shielding Activations . | . . . . . Robots Disrupted . | . . . . . Combat Hostiles . | . . . . . Robots Corrupted . | . . . . . Combat Hostiles . | . . . . . Parts Fried . | . . . . . Impact Corruptions . | . . . . . Robots Melted . | . . . . . Combat Hostiles . | . . . . . Parts Melted 2 | . 1 1 . . Heat Transferred 615 | . 80 535 . . Parts Sabotaged . | . . . . . Parts Stolen . | . . . . . Parts Stripped . | . . . . . Power Chain Reactions 1 | . . 1 . . Alert | -11 -10 -9 -9 -9 ------- Run | Yrd Mat Mat Min Exi Maximum Alert Level . | . . . . . Low Security (%) 100 | 100 100 100 100 . Level 1 . | . . . . . Level 2 . | . . . . . Level 3 . | . . . . . Level 4 . | . . . . . Level 5 . | . . . . . High Security . | . . . . . Max Security . | . . . . . Peak Influence 174 | . 126 174 61 . Initial 61 | . . 23 61 . Average 32 | . 38 86 6 . Influence Increases 581 | . 136 379 66 . Destroy 0b10 Robot/C 300 | . . 260 40 . Destroy 0b10 Robot/NC 20 | . 10 . 10 . Destroy Leader 84 | . 4 70 10 . Allied During Kill 3 | . . . 3 . Successful Hack 26 | . 10 16 . . Disable Machine 90 | . 90 . . . Destroy Structure 28 | . 22 3 3 . Lose Combat Pursuer 30 | . . 30 . . Influence Decreases 581 | . 80 277 224 . Entered New Map 130 | . . 33 97 . Time Decay 401 | . 80 214 107 . Lost Part 30 | . . 30 . . Lost Ally 20 | . . . 20 . Squads Dispatched 5 | . . 5 . . Investigation 2 | . . 2 . . Extermination . | . . . . . Reinforcement 3 | . . 3 . . Assault . | . . . . . Garrison . | . . . . . Intercept . | . . . . . Searches Triggered . | . . . . . Construction Impeded . | . . . . . Haulers Reinforced . | . . . . . Active Scanning Responses . | . . . . . Cargo Convoy Interrupts . | . . . . . Stealth | -11 -10 -9 -9 -9 --------- Run | Yrd Mat Mat Min Exi Distress Signals 1 | . . 1 . . Communications Jammed . | . . . . . Distress Signals . | . . . . . Times Spotted 43 | . 5 25 3 10 Peak Tracking Total 10 | . 3 6 2 10 Tactical Retreats 3 | . . 2 . 1 Traps | -11 -10 -9 -9 -9 ------- Run | Yrd Mat Mat Min Exi Traps Triggered 2 | . 1 1 . . Indirectly . | . . . . . Trap Hack Attempts . | . . . . . Triggered . | . . . . . Disarmed . | . . . . . Reprogrammed . | . . . . . Reused . | . . . . . Traps Extracted . | . . . . . Installed . | . . . . . Triggered . | . . . . . Machines | -11 -10 -9 -9 -9 ---------- Run | Yrd Mat Mat Min Exi Machines Disabled 8 | . 6 . . 2 Max in Single Turn 6 | . 6 . . 1 Machines Repaired . | . . . . . Machines Dismantled . | . . . . . Machines Sabotaged . | . . . . . Overloaded Fab Kills . | . . . . . Hacking | -11 -10 -9 -9 -9 --------- Run | Yrd Mat Mat Min Exi Machines Accessed 7 | . 1 4 1 1 Terminals 4 | . 1 3 . . Fabricators . | . . . . . Repair Stations 1 | . . 1 . . Recycling Units . | . . . . . Scanalyzers . | . . . . . Garrison Access . | . . . . . Total Hacks 21 | . 3 14 1 3 Successful 12 | . 3 5 1 3 Failed 9 | . . 9 . . Catastrophic 1 | . . 1 . . Database Lockouts . | . . . . . Manual 3 | . . 3 . . Terminals 14 | . 3 11 . . Fabricators . | . . . . . Repair Stations 3 | . . 3 . . Recycling Units . | . . . . . Scanalyzers . | . . . . . Garrison Access . | . . . . . Terminal Hacks 10 | . 3 3 1 3 Record 3 | . . . . 3 Prototype ID Bank 2 | . 1 1 . . Open Door 1 | . . . 1 . Branch Access Points 1 | . . 1 . . Alert Level 1 | . . 1 . . Maintenance Status 1 | . 1 . . . Zone Layout 1 | . 1 . . . Fabricator Hacks . | . . . . . Repair Station Hacks 2 | . . 2 . . Scan Component 1 | . . 1 . . Repair 1 | . . 1 . . Recycling Unit Hacks . | . . . . . Scanalyzer . | . . . . . Garrison Access Hacks . | . . . . . Unauthorized Hacks . | . . . . . Terminals . | . . . . . Fabricators . | . . . . . Repair Stations . | . . . . . Recycling Units . | . . . . . Scanalyzers . | . . . . . Garrison Access . | . . . . . Data Cores Recovered . | . . . . . Used . | . . . . . Hacking Detections 5 | . 1 4 . . Full Trace Events 1 | . . 1 . . Feedback Events . | . . . . . Feedback Blocked . | . . . . . Robot Schematics Acquired . | . . . . . Robots Built . | . . . . . Authchips . | . . . . . Time . | . . . . . Total Robot Build Rating . | . . . . . Part Schematics Acquired . | . . . . . Parts Built . | . . . . . Authchips . | . . . . . Time . | . . . . . Total Part Build Rating . | . . . . . Parts Repaired 1 | . . 1 . . Time 32 | . . 32 . . Parts Recycled . | . . . . . Recycled Matter . | . . . . . Retrieved Matter . | . . . . . Retrieved Components . | . . . . . Parts Scanalyzed . | . . . . . Part Schematics Acquired . | . . . . . Parts Damaged . | . . . . . Bothacking | -11 -10 -9 -9 -9 ------------ Run | Yrd Mat Mat Min Exi Used RIF Installer . | . . . . . Robots Hacked . | . . . . . Non-combat . | . . . . . Combat . | . . . . . Robot Hacks Applied . | . . . . . Relay Couplers Released . | . . . . . Fabnet Peak Effective % . | . . . . . Robots Rewired . | . . . . . Allies Hacked . | . . . . . Hacks Repelled . | . . . . . Allies | -11 -10 -9 -9 -9 -------- Run | Yrd Mat Mat Min Exi Total Allies 1 | . . . 1 . Largest Group 1 | . . . 1 . Highest-Rated Group 31 | . . . 31 . Highest-Rated Ally 31 | . . . 31 . Total Orders . | . . . . . Ally Attacks 12 | . . . 7 5 Total Damage 67 | . . . 51 16 Kills 1 | . . . 1 . Allies Corrupted . | . . . . . Allies Melted . | . . . . . Intel | -11 -10 -9 -9 -9 ------- Run | Yrd Mat Mat Min Exi Active Infowar (turns) 1868 | . . 444 904 520 Structural 1868 | . . 444 904 520 Robot Analysis Total . | . . . . . Derelict Logs Recovered 2 | . . . 2 . Drone Launches 11 | . . . 11 . Drone Recoveries 10 | . . . 5 5 Exploration | -11 -10 -9 -9 -9 ------------- Run | Yrd Mat Mat Min Exi Turns Passed 2277 | 67 340 444 904 522 Spaces Moved 1595 | 63 312 232 508 480 Core 54 | 9 . . 41 4 Treads . | . . . . . Legs . | . . . . . Wheels 1541 | 54 312 232 467 476 Hover . | . . . . . Flight . | . . . . . Fastest Speed 50 | 50 100 100 95 50 Average Speed 115 | 92 100 102 152 95 Slowest Speed 700 | 100 100 115 700 200 Overloaded Moves . | . . . . . Propulsion Burnouts . | . . . . . Robots Hopped . | . . . . . Potential Cave-ins . | . . . . . Cave-ins Triggered 1 | . . . 1 . Exploration Rate (%) 46 | 4 51 21 77 81 Regions Visited 4 Branch Regions 2 Pre-discovered Areas 1 | . . . . 1 Known Exits Taken 1 | . . 1 . . Unknown Exits Taken 3 | 1 1 . 1 . Scrap Searched 3 | . . . 3 . Spaces Dug 7 | . . . 7 . Terrain Destroyed 41 | . 21 2 7 11 Melee . | . . . . . Projectile 7 | . . . 7 . AOE 34 | . 21 2 . 11 Terrain Rammed . | . . . . . Walls Destroyed . | . . . . . Machines Disabled . | . . . . . Actions | -11 -10 -9 -9 -9 --------- Run | Yrd Mat Mat Min Exi Total 1881 | 68 332 363 601 517 Wait 161 | . 5 75 65 16 Move 1591 | 62 311 231 507 480 Hop . | . . . . . Pick Up 16 | . 8 5 3 . Fast Attach 14 | 6 1 3 4 . Attach 6 | . . 3 1 2 Detach 3 | . . 1 2 . Swap 7 | . 1 4 2 . Drop 7 | . . 3 2 2 Fire 72 | . 4 37 14 17 Melee . | . . . . . Ram 4 | . 2 1 1 . Kick . | . . . . . Crush . | . . . . . Escape Stasis . | . . . . . Rewire . | . . . . . Trap . | . . . . . Miscellaneous . | . . . . . Route ------- -11/Scrapyard -10/Materials (discovered 3 exits: *Mat x2 / [*Min]) -9/Materials (discovered 2 exits: *Min x2) -9/Mines -9/Exiles (discovered 1 exit: [*Min]) History --------- Turn | Location | Event 19 | -11/Scrapyard | Discovered new exit (range 14) 68 | -11/Scrapyard | Entered Materials 246 | -10/Materials | Discovered new exit (range 15) 302 | -10/Materials | Build established: Mutant 316 | -10/Materials | Discovered new exit (range 8) 401 | -10/Materials | Discovered new exit (range 7) 408 | -10/Materials | Entered another Materials area 408 | -9/Materials | Evolved 2 slots: Utility x2 725 | -9/Materials | Identified exit to Mines 767 | -9/Materials | Repaired Rnf. Ion Engine 852 | -9/Materials | Entered Mines 866 | -9/Mines | Found the Drone Emporium 879 | -9/Mines | Found Prototype Device 879 | -9/Mines | Identified Splice Drone Bay 886 | -9/Mines | Met a Derelict bent on vengeance 922 | -9/Mines | Assembled infested the area 962 | -9/Mines | Learned Materials stockpile data 1121 | -9/Mines | Received a Mining Laser from a helpful Derelict 1171 | -9/Mines | Crushed by falling debris 1171 | -9/Mines | Core integrity fell below 50% 1664 | -9/Mines | Received a Rocket Launcher from a helpful Derelict 1727 | -9/Mines | Deemed a non-threat by the Exiles lab entrance 1727 | -9/Mines | Discovered new exit (range 6) 1756 | -9/Mines | Entered Exiles 1756 | -9/Exiles | Accompanied by 5 allies 1788 | -9/Exiles | Met 8R-AWN 1810 | -9/Exiles | Met EX-HEX 1866 | -9/Exiles | Met EX-DEC 1879 | -9/Exiles | Learned location of Zion (-7) 1945 | -9/Exiles | Discovered new exit (range 16) 2052 | -9/Exiles | Visited The Gauntlet 2204 | -9/Exiles | Attacked by the Exiles 2265 | -9/Exiles | Core integrity fell below 20% 2266 | -9/Exiles | Destroyed 7 combat bots 2278 | -9/Exiles | Destroyed by 8R-AWN with 8R-AWN's Boregun Last Messages --------------- Penetrated by HV Slug. HV Slug penetrates Earth. Penetrated by HV Slug. HV Slug penetrates Wall. Penetrated by HV Slug. Acquired 14 matter. HV Slug penetrates Wall. HV Slug penetrates Earth. Penetrated by HV Slug. Acquired 20 matter. Penetrated by HV Slug. HV Slug penetrates Wall. Penetrated by HV Slug. Heat Sink destroyed. HV Slug penetrates Wall. Dropped Med. Storage Unit. Dropped Structural Scanner. Acquired 18 matter. System corrupted: Component data lost. Penetrated by HV Slug. Map ----- +----------------------------------------------------+ | ??????## ""##?????###" "??????????????????? | | ??????##"" ""##????####" ##??????????????????? | | #####?#### ###########"" ##??????????????????? | | ########## ##########"" ###?????????????????? | | """#####X# #"###""""""" ####?#############??? | | """""" " "" ##################?? | | "" """ " #####"""""""""####? | | " " " """ """"###? | | "" " ##? | | " """##? | | " "### | | # " "### | | ##" ""## | | ##""" """""" """ | | ##" ######""" " | | #"" ""###########""" | | #""" """####??#######""" | | """ """####???????###"""" | | """ ""##############"" | | "" ##############"" " | | """ ##aaa####""" | | "" "" " | | #"" | | #"""" | | ## " | | ##" " @% "" "" " | | ##"""" ""# g #""" " " ""#" " | | ##"" ""###[![ ####""" """##"""""""# | | ##" """"####![ ######""""########### | | ##""" """#### ###################### | | ### ""#### ! !##???###???????????? | | ###"" """### ## !##?????????????????? | | ?###""" ####### ##?????????????????? | | ?####"""" ####??##!! "!"##?????????????????? | | ??##### ###???####;#####?????????????????? | | ???######## ###????#### #####?????????????????? | | ?????####### ###??????## ##????????????????????? | | ?????????### ##???????## ##????????????????????? | | ??????????## ##????????# ##????????????????????? | | ######????## ##????????# ##????????????????????? | | ######????## ##????????# ##????????????????????? | | #"""""""#### ##????????# #?????????????????????? | | #"""""""#### ##????????# #?????????????????????? | | #" """"#### ##????????# #?????????????????????? | | #"" """#### ##????????###?????????????????????? | | #"" ""#### #########?????????????????????????? | | ###"""###### #########?#???????????????????????? | | """ """""" """""""#"""""##???????????????????? | | "" "#"" ""##???????????????????? | | " ""##???????????????????? | +----------------------------------------------------+ Best States ------------- Heat Dissipation 38 Energy Generation 12 Energy Capacity 265 Matter Stores 300 Matter Capacity 300 Sight Range 16 Terrain Scan Density 10 Armor Coverage 150 Evasion (%) 41 Targeting Accuracy 6 Item Schematics ----------------- None Robot Schematics ------------------ None Fabricated ------------ Nothing Repaired ---------- Rnf. Ion Engine | 22% | -9/Materials Alien Tech Used ----------------- None Achievements -------------- Release The Drones! Challenges ------------ None Game ------ Seed ScatterActiveWeb Manual? 0 Play Time 00:26:57 Cumulative 14.9 hours Start 2025.05.26 @ 00:29:19 End 2025.05.26 @ 00:55:58 Sessions 1 Manual Loads 0 Difficulty Rogue Special Mode None Game No. 15 Rogue 15 Adventurer 0 Explorer 0 Win Type - Total 0 Types 0/0/0/0/0/0/0/0/0/0 Lore% 10 Gallery% 19 Achievement% 19 Wizard Run 0 Options --------- Layout 1 ASCII 0 Keyboard 1 Movement Arrows Keybinds 0 Fullscreen 1 Font 24/Smallcaps Map View 50x35 Zoom Use 0% Tactical HUD 0 Map Filters NONE Filters NONE Steam 1 RUN: 52f25ac7-c818-4360-b782-63da79ab07d5